[Event "Olomouc Chess Summer-IM 2022"]
[Site "Olomouc"]
[Date "2022.08.16"]
[Round "5.15"]
[White "Camarena Jimenez, Rufino"]
[Black "Shubin, Daniel"]
[Result "1-0"]
[ECO "D52"]
[WhiteElo "2308"]
[BlackElo "2206"]
[Annotator "TA"]
[PlyCount "55"]
[EventDate "2022.08.10"]
[EventCountry "CZE"]
[SourceTitle "playchess.com"]
[Source "ChessBase"]
[SourceQuality "1"]
[TimeControl "40/5400+30:1800+30"]

{[%evp 18,55,22,19,22,10,0,5,10,0,0,0,0,0,0,0,0,0,2,0,131,0,105,16,23,-86,-85,-93,-81,-127,285,285,276,258,732,699,679,635,770,767]} 1. d4 {[%emt 0:00:08]} d5 {[%emt 0:00:26]} 2. c4 {[%emt 0:00:09]} e6 {[%emt 0:00:03]} 3. Nc3 {[%emt 0:00:08]} Nf6 {[%emt 0:00:04]} 4. Bg5 {[%emt 0:00:09]} Nbd7 {[%emt 0:00:05]} 5. e3 {[%emt 0:00:08]} c6 {[%emt 0:00:09]} 6. Nf3 {[%emt 0:00:15]} Qa5 {[%emt 0:00:13]} 7. cxd5 {[%emt 0:00:17]} Nxd5 {[%emt 0:00:06]} 8. Qd2 {[%emt 0:00:06]} Bb4 {[%emt 0:00:22]} 9. Rc1 {[%emt 0:00:12]} h6 {[%emt 0:00:06]} 10. Bh4 {[%emt 0:00:06]} b6 {[%emt 0:01:06] D52: Queen's Gambit Declined: Cambridge Springs Variation.} 11. Bd3 {[%emt 0:07:19]} Ba6 {[%emt 0:01:54]} 12. O-O {[%emt 0:01:14] next Bxa6 is good for White.} O-O {[%emt 0:00:05] The position is equal.} 13. e4 {[%emt 0:03:52]} Nxc3 {[%emt 0:00:04]} 14. bxc3 {[%emt 0:00:50]} Ba3 {[%emt 0:00:04] Strongly threatening ...Bxd3.} 15. Rcd1 {[%emt 0:05:24] [#]} Bxd3 $146 {[%emt 0:00:59]} ({Predecessor:} 15... Rfe8 16. Rfe1 Bxd3 17. Qxd3 Rac8 18. h3 b5 19. Re2 Qa4 20. Rde1 Bf8 21. g4 c5 {0-1 (39) Praggnanandhaa,R (2642)-Ding,L (2806) chess24.com INT 2022}) 16. Qxd3 {[%emt 0:00:08]} b5 {[%emt 0:04:51]} 17. Rfe1 {[%emt 0:04:16]} Rac8 {[%emt 0:04:53]} 18. e5 {[%emt 0:07:36]} c5 {[%emt 0:15:05]} (18... Nb6 $11) 19. Re4 {[%emt 0:15:18] White is more active.} ({White has to play} 19. d5 $1 $16 {[%cal Rd5e6] And now dxe6 would win.} c4 20. Qe4) 19... Bb2 {[%emt 0:03:32] [#]} (19... cxd4 $11 20. Rxd4 Nb6) 20. Qb1 {[%emt 0:17:36]} (20. Rg4 $1 $16 {Intending Bf6 and mate.} Qxc3 21. Qe4) 20... Bxc3 $11 {[%emt 0:04:44] Threatens to win with ...cxd4.} (20... Qxc3 $2 21. Re3 (21. Re2 Ba3 $11) 21... cxd4 22. Rxc3 dxc3 23. Qc2 $18 (23. Rxd7 $2 c2 $19)) 21. Bf6 {[%emt 0:05:33]} Qb4 $17 {[%emt 0:26:10] ...Qxb1 is the strong threat.} (21... gxf6 $2 22. Rg4+ Kh8 23. Qc1 $18) 22. Qc1 {[%emt 0:07:17] Threatening mate with Rg4.} Bxd4 {[%emt 0:01:28]} (22... gxf6 23. Qxh6) (22... Nxf6 23. exf6 Qb2 24. fxg7 Kxg7 25. Qe3 $16 (25. Qf4 Bxd4 26. Nxd4 cxd4 $11)) 23. Qf4 {[%emt 0:05:13]} (23. Bxg7 $142 Bxf2+ 24. Kxf2 Qxe4 25. Qxh6) 23... gxf6 $2 {[%emt 0:14:43][%mdl 8192] This move loses the game for Black.} (23... Qa4 $17 {and life is bright.} 24. Rf1 Qxa2 25. Bxg7 Kxg7 26. Qg4+ Kh8) 24. Nxd4 $18 {[%emt 0:01:57][%cal Of4h6,Bf3d4,Bd4e6,Be6f8][%mdl 32]} Nxe5 {[%emt 0:06:59] [#] aiming for ...Ng6.} (24... cxd4 25. Qxh6 (25. Rexd4 Rc4 $15) 25... Qd2 26. Rg4+ $18) 25. Nxe6 $1 $40 {[%emt 0:02:00][%mdl 192] Discovered Attack. White is out for blood.} Qb2 {[%emt 0:01:42]} (25... Qxe4 $2 26. Qxe4 Rfe8 27. Nf4 $18) (25... fxe6 26. Rxb4 cxb4 27. Qxh6 (27. Qxb4 Rfd8 $18) 27... Rc7) 26. Nxf8 {[%emt 0:01:42][%cal Of4h6] White is clearly winning.} Rd8 {[%emt 0:01:12] [#]} 27. Rf1 {[%emt 0:03:12][%cal Of4h6]} Qd2 {[%emt 0:02:01]} (27... Kg7 28. Nd7) 28. Qxf6 {[%emt 0:00:37] Weighted Error Value: White=0.29 (precise) /Black=0.54} 1-0

[Event "Olomouc Chess Summer-IM 2022"]
[Site "Olomouc"]
[Date "2022.08.17"]
[Round "6.6"]
[White "Jurek, Josef"]
[Black "Nagy, Ladislav"]
[Result "1-0"]
[ECO "D37"]
[WhiteElo "2212"]
[BlackElo "2194"]
[Annotator "NA RC"]
[PlyCount "91"]
[EventDate "2022.08.10"]
[EventCountry "CZE"]
[SourceTitle "playchess.com"]
[Source "ChessBase"]
[SourceQuality "1"]
[TimeControl "40/5400+30:1800+30"]

1. d4 {[%emt 0:00:18]} Nf6 {[%emt 0:00:20]} 2. c4 {[%emt 0:00:20]} e6 {[%emt 0:00:25]} 3. Nf3 {[%emt 0:00:24]} d5 {[%emt 0:00:23]} 4. Nc3 {[%emt 0:00:23]} Be7 {[%emt 0:00:32]} 5. Bf4 {[%emt 0:00:31]} O-O {[%emt 0:01:57]} 6. a3 {[%emt 0:00:19]} Nbd7 {[%emt 0:04:54]} 7. Nb5 {[%emt 0:01:38]} Ne8 {[%emt 0:07:31]} 8. e3 {[%emt 0:01:01]} c6 {[%emt 0:06:49]} 9. Nc3 {[%emt 0:00:18]} Nef6 {[%emt 0:00:50]} 10. Rc1 {[%emt 0:02:58]} Nh5 {[%emt 0:06:06]} 11. Bd3 {[%emt 0:01:06]} Nxf4 {[%emt 0:06:09]} 12. exf4 {[%emt 0:00:16]} b6 {[%emt 0:07:37]} 13. O-O {[%emt 0:12:53]} Nf6 {[%emt 0:09:23]} 14. Qe2 {[%emt 0:05:35]} Ba6 {[%emt 0:09:15]} 15. Rfd1 {[%emt 0:04:57]} Rc8 {[%emt 0:06:01]} 16. Ne5 {[%emt 0:03:13]} Rc7 {[%emt 0:04:45]} 17. b4 {[%emt 0:14:38]} Qc8 {[%emt 0:06:27]} 18. c5 {[%emt 0:04:59]} Bxd3 {[%emt 0:00:36]} 19. Qxd3 {[%emt 0:00:22]} b5 {[%emt 0:03:37]} 20. a4 {[%emt 0:02:32]} a6 {[%emt 0:00:56]} 21. Ra1 {[%emt 0:07:20]} Qb7 {[%emt 0:00:56]} 22. axb5 {[%emt 0:06:22]} axb5 {[%emt 0:00:10]} 23. Rd2 {[%emt 0:01:18]} Nd7 {[%emt 0:02:24]} 24. Rda2 {[%emt 0:02:33]} Nxe5 {[%emt 0:01:11]} 25. dxe5 {[%emt 0:01:46]} Rb8 {[%emt 0:03:32]} 26. Ne2 {[%emt 0:01:43]} Qc8 {[%emt 0:00:58]} 27. Nd4 {[%emt 0:00:47]} Qf8 {[%emt 0:01:05]} 28. g3 {[%emt 0:03:33]} Bxc5 {[%emt 0:04:47]} 29. bxc5 {[%emt 0:00:10]} Qxc5 {[%emt 0:00:01]} 30. f5 {[%emt 0:00:20]} exf5 {[%emt 0:03:37]} 31. Nxf5 {[%emt 0:02:12]} g6 {[%emt 0:01:43]} 32. Nd4 {[%emt 0:04:23]} Qc4 {[%emt 0:00:30]} 33. Qd2 {[%emt 0:01:52]} c5 {[%emt 0:01:01]} 34. Rc2 {[%emt 0:02:00]} cxd4 {[%emt 0:00:24]} 35. Rxc4 {[%emt 0:00:11]} dxc4 {[%emt 0:00:18]} 36. Qxd4 {[%emt 0:00:17]} c3 {[%emt 0:00:35]} 37. Ra7 {[%emt 0:02:00]} Rxa7 {[%emt 0:00:40]} 38. Qxa7 {[%emt 0:00:10]} Re8 {[%emt 0:00:31]} 39. Qc5 {[%emt 0:01:14]} b4 {[%emt 0:00:24]} 40. Qxb4 {[%emt 0:01:40]} Rc8 {[%emt 0:00:22]} 41. Qb7 {[%emt 0:31:02]} Rc4 {[%emt 0:03:13]} 42. Qd5 {[%emt 0:00:00]} Rc8 {[%emt 0:00:39]} 43. Qd7 {[%emt 0:00:00]} Rc4 {[%emt 0:02:05]} 44. e6 {[%emt 0:00:00]} Kg7 {[%emt 0:00:23]} 45. Qxf7+ {[%emt 0:00:00]} Kh6 {[%emt 0:00:04]} 46. e7 {[%emt 0:00:00]} 1-0

[Event "Olomouc Chess Summer-IM 2022"]
[Site "Olomouc"]
[Date "2022.08.17"]
[Round "6.7"]
[White "Lalic, Bogdan"]
[Black "Kusa, Jakub"]
[Result "1/2-1/2"]
[ECO "D31"]
[WhiteElo "2415"]
[BlackElo "2373"]
[Annotator "TA"]
[PlyCount "21"]
[EventDate "2022.08.10"]
[EventCountry "CZE"]
[SourceTitle "playchess.com"]
[Source "ChessBase"]
[SourceQuality "1"]
[TimeControl "40/5400+30:1800+30"]

{[%evp 9,21,18,27,21,25,24,39,19,33,0,30,26,42,14]} 1. d4 {[%emt 0:00:38] Atalik,S} d5 {[%emt 0:00:13]} 2. c4 {[%emt 0:00:11]} e6 {[%emt 0:00:07]} 3. Nc3 {[%emt 0:00:08]} a6 {[%emt 0:00:18]} 4. cxd5 {[%emt 0:00:25]} exd5 {[%emt 0:00:08]} 5. Bf4 {[%emt 0:00:13]} c6 {[%emt 0:00:42]} 6. e3 {[%emt 0:00:22] D31: Queen's Gambit Declined: Semi-Slav without ...Nf6 (+ Marshall Gambit and Noteboom) and Exchange Variation lines without ...Nf6.} Bd6 {[%emt 0:00:44]} 7. Qf3 {[%emt 0:01:17]} Ne7 {[%emt 0:06:26]} 8. Bd3 {[%emt 0:00:17]} O-O {[%emt 0:01:25]} 9. Nge2 {[%emt 0:00:17] [#]} Bxf4 $146 {[%emt 0:01:16]} (9... Bf5 $5 {[%cal Rf5d3]} 10. Bxd6 Bxd3 $11) ({Predecessor:} 9... Ng6 10. Bxd6 Qxd6 11. Qg3 Qb4 12. Rb1 Nd7 13. h4 Ne7 14. a3 Qa5 15. h5 h6 {0-1 (89) Atalik,S (2507)-Vaibhav,S (2544) Chess.com INT 2018 CBM 183 [Atalik,S]}) 10. Nxf4 {[%emt 0:00:47]} ({But not} 10. exf4 Bf5 $11) 10... Nd7 {[%emt 0:01:43]} 11. O-O {[%emt 0:00:29] Black got outplayed after the opening.  Weighted Error Value: White=0.13 (very precise) /Black=0.12 (very precise)} 1/2-1/2

[Event "Olomouc Chess Summer-IM 2022"]
[Site "Olomouc"]
[Date "2022.08.17"]
[Round "6.8"]
[White "Poschadel, Andreas Gregor"]
[Black "Nytra, Ondrej"]
[Result "0-1"]
[ECO "C84"]
[WhiteElo "2073"]
[BlackElo "2202"]
[Annotator "NA RC"]
[PlyCount "88"]
[EventDate "2022.08.10"]
[EventCountry "CZE"]
[SourceTitle "playchess.com"]
[Source "ChessBase"]
[SourceQuality "1"]
[TimeControl "40/5400+30:1800+30"]

1. e4 {[%emt 0:00:04]} e5 {[%emt 0:00:06]} 2. Nf3 {[%emt 0:00:07]} Nc6 {[%emt 0:00:03]} 3. Bb5 {[%emt 0:00:07]} a6 {[%emt 0:00:04]} 4. Ba4 {[%emt 0:00:07]} Nf6 {[%emt 0:00:04]} 5. O-O {[%emt 0:00:12]} Be7 {[%emt 0:00:10]} 6. d3 {[%emt 0:00:11]} b5 {[%emt 0:01:05]} 7. Bb3 {[%emt 0:00:05]} d6 {[%emt 0:00:04]} 8. a4 {[%emt 0:00:25]} b4 {[%emt 0:00:30]} 9. c3 {[%emt 0:01:15]} O-O {[%emt 0:00:33]} 10. Re1 {[%emt 0:16:39]} a5 {[%emt 0:00:53]} 11. Nbd2 {[%emt 0:01:52]} Ba6 {[%emt 0:00:45]} 12. Nc4 {[%emt 0:03:40]} Rb8 {[%emt 0:00:49]} 13. Qc2 {[%emt 0:07:06]} Nd7 {[%emt 0:02:59]} 14. Be3 {[%emt 0:08:21]} Bf6 {[%emt 0:11:15]} 15. Rad1 {[%emt 0:11:07]} Qe7 {[%emt 0:13:51]} 16. Ncd2 {[%emt 0:13:59]} g6 {[%emt 0:09:51]} 17. Bd5 {[%emt 0:06:35]} Nd8 {[%emt 0:07:56]} 18. d4 {[%emt 0:04:30]} bxc3 {[%emt 0:03:17]} 19. bxc3 {[%emt 0:04:14]} Nb6 {[%emt 0:01:59]} 20. Bb3 {[%emt 0:04:40]} Ne6 {[%emt 0:04:00]} 21. Qa2 {[%emt 0:03:52]} Bg7 {[%emt 0:05:28]} 22. dxe5 {[%emt 0:04:49]} dxe5 {[%emt 0:00:54]} 23. Nc4 {[%emt 0:00:27]} Bxc4 {[%emt 0:01:52]} 24. Bxc4 {[%emt 0:00:07]} Nc5 {[%emt 0:00:15]} 25. Qa3 {[%emt 0:04:13]} Nxc4 {[%emt 0:02:07]} 26. Bxc5 {[%emt 0:01:19]} Qe6 {[%emt 0:01:19]} 27. Qa1 {[%emt 0:00:57]} Rfe8 {[%emt 0:01:06]} 28. Re2 {[%emt 0:02:35]} Qc6 {[%emt 0:02:36]} 29. Be3 {[%emt 0:00:46]} Qxe4 {[%emt 0:01:03]} 30. Nd2 {[%emt 0:00:35]} Qd3 {[%emt 0:02:55]} 31. Ree1 {[%emt 0:00:29]} Nxe3 {[%emt 0:02:42]} 32. Rxe3 {[%emt 0:00:15]} Qc2 {[%emt 0:00:17]} 33. Nc4 {[%emt 0:00:32]} e4 {[%emt 0:02:32]} 34. Rc1 {[%emt 0:00:37]} Qb3 {[%emt 0:00:28]} 35. Nd2 {[%emt 0:00:39]} Qd5 {[%emt 0:00:50]} 36. Nf1 {[%emt 0:00:25]} Qc4 {[%emt 0:01:48]} 37. Nd2 {[%emt 0:00:22]} Qc6 {[%emt 0:00:24]} 38. Rce1 {[%emt 0:00:41]} f5 {[%emt 0:00:25]} 39. Qa2+ {[%emt 0:00:30]} Kh8 {[%emt 0:00:04]} 40. Qf7 {[%emt 0:00:31]} Bxc3 {[%emt 0:02:21]} 41. Rh3 {[%emt 0:04:12]} h5 {[%emt 0:05:22]} 42. g4 {[%emt 0:06:52]} Rf8 {[%emt 0:06:50]} 43. Qe7 {[%emt 0:02:30]} fxg4 {[%emt 0:01:32]} 44. Rxe4 {[%emt 0:04:47]} gxh3 {[%emt 0:00:22]} 0-1

[Event "Olomouc Chess Summer-IM 2022"]
[Site "Olomouc"]
[Date "2022.08.17"]
[Round "6.9"]
[White "Stinka, Jakub"]
[Black "Gimenez Menchon, Cesar"]
[Result "1-0"]
[ECO "E94"]
[WhiteElo "2329"]
[BlackElo "2205"]
[Annotator "TA"]
[PlyCount "115"]
[EventDate "2022.08.10"]
[EventCountry "CZE"]
[SourceTitle "playchess.com"]
[Source "ChessBase"]
[SourceQuality "1"]
[TimeControl "40/5400+30:1800+30"]

{[%evp 18,115,69,60,89,56,94,73,79,89,78,75,95,99,102,54,66,32,40,29,91,75,99,89,93,53,47,0,34,-31,-30,-23,0,0,7,0,2,0,11,0,22,23,18,0,0,0,16,3,79,81,80,85,79,84,153,147,150,141,143,132,130,79,177,33,50,0,0,0,41,27,38,41,40,35,92,85,111,125,130,190,723,732,1759,1904,3243,2212,1729,1729,29974,29973,29981,29982,29982,29983,29980,29981,29988,29989,29989,29990]} 1. d4 d6 2. Nf3 Nf6 3. c4 g6 4. Nc3 Nbd7 5. e4 e5 6. Be2 Bg7 7. O-O O-O 8. Be3 Qe7 9. Qc2 c6 10. d5 c5 {E94: King's Indian: Classical: 6 Be2 e5 7 0-0: Various Black 7th moves.} 11. Ne1 h6 12. Nd3 Nh7 {White is better.} 13. Qd2 {[#]} h5 $146 ({Predecessor:} 13... g5 14. Bg4 Nb6 15. Bxc8 Nxc4 16. Qe2 Rfxc8 17. g4 Nb6 18. Qc2 Qd7 19. f3 Nc4 20. Bc1 b5 {½-½ (33) Gandrud,V (2228)-Ulvnes,R (2042) Oslo 2015}) 14. Bh6 Ndf6 15. Bxg7 Kxg7 16. f4 (16. a4 $16) 16... Nd7 $14 17. Rae1 exf4 $1 18. Qxf4 f6 (18... Ne5 $11) 19. Qg3 $16 {Threatens to win with Bxh5.} Kh6 20. Nf4 {[%csl Gf4][%cal Rg3g6] White is much more active. The black rooks are badly placed.} Ne5 21. Nd1 Ng5 22. Qh4 (22. h3 $14) 22... Bd7 23. Ne3 (23. Nc3 $14) 23... Kg7 $15 24. Bd1 a6 25. Bc2 b5 26. Qg3 {White wants to play h4.} Kh7 (26... Nxc4 $2 27. Nxc4 h4 28. Qxh4 $1 bxc4 29. e5 $18) (26... bxc4 27. h4 $16) 27. b3 Rg8 28. Rf2 Rab8 29. Ref1 bxc4 30. bxc4 Rb2 31. h4 Ngf7 32. Ne6 Bxe6 (32... Nd8 $1 $11 {remains equal.}) 33. dxe6 $16 Qxe6 34. Nd5 Rg7 35. Rxf6 Qg4 (35... Qd7 $142 36. Qc3 Rb8) 36. Qc3 $1 {And now Rxf7 would win.} (36. Qxg4 Nxg4 37. Rxf7 Rxc2 $15) 36... Rb7 {[#]} (36... Rxa2 $2 37. Rxf7 $1 {[%mdl 512]} (37. Qb3 Rxc2 38. Qxc2 Qxh4 $14) 37... Rxf7 38. Rxf7+ Kg8 39. Nf6+ Kxf7 40. Nxg4 $18) 37. Rxd6 $3 {[%mdl 512] Strongly threatening Nf6+.} Qxh4 38. Nf6+ (38. Rxa6 $6 Ng4 39. Nf6+ (39. Qh3 Qg5 $11) 39... Nxf6 40. Raxf6 Re7 $11) 38... Kh6 39. Rxa6 (39. Rd5 $142) 39... Qg5 (39... Ng4 $16 {is a better defense.} 40. Nxg4+ hxg4) 40. Ne8 ({Better is} 40. Bb3 $18) 40... Rg8 $14 {[%cal Bg7g8,Bg8d8,Bd8d6][%mdl 32]} 41. Nf6 (41. Re6 $14) 41... Rd8 {White must now prevent ...Rd2.} 42. Nd5 Rd6 43. Ra8 Rd8 {Inhibits Rc8.} 44. Ra5 Rc8 45. Ra6 {Inhibits Nd6.} Ng4 {[#]} (45... Rd8 $14) 46. Bd1 $1 $16 {Bxg4 is the strong threat.} Rb1 {[%cal Oc8b8]} 47. Bxg4 {Really sharp!} (47. Ra7 Nge5 $11) 47... Rxf1+ 48. Kxf1 Qxg4 {[#]} (48... hxg4 49. Re6 (49. Ra7 Rf8 $16) 49... Rd8) 49. Ne7 $1 $18 {[%csl LRc8,LRg6] Intending Nf5+ and mate.} Qd1+ 50. Kf2 {[%cal Bf1f2,Bf2g1,Bg1h2][%mdl 32]} Nd6 51. Qe3+ ({Less strong is} 51. Rxd6 Qxd6 52. Nxc8 (52. Qe3+ Kg7 $16) 52... Qf8+ 53. Ke3 Qxc8 $16) 51... Kh7 52. Nxc8 Qc2+ 53. Kg1 {White mates.} Qb1+ 54. Kh2 Nxc8 55. Qf4 Qb7 56. Rf6 Ne7 57. Rf7+ Kg8 58. Rf8+ {Weighted Error Value: White=0.15 (very precise) /Black=0.35} 1-0

[Event "Olomouc Chess Summer-IM 2022"]
[Site "Olomouc"]
[Date "2022.08.17"]
[Round "6.10"]
[White "Kukelko, Alexey"]
[Black "Jasny, Stanislav"]
[Result "1/2-1/2"]
[ECO "B43"]
[WhiteElo "2260"]
[BlackElo "2248"]
[Annotator "NA RC"]
[PlyCount "66"]
[EventDate "2022.08.10"]
[EventCountry "CZE"]
[SourceTitle "playchess.com"]
[Source "ChessBase"]
[SourceQuality "1"]
[TimeControl "40/5400+30:1800+30"]

1. e4 {[%emt 0:02:26]} c5 {[%emt 0:04:16]} 2. Nf3 {[%emt 0:00:25]} e6 {[%emt 0:00:21]} 3. d4 {[%emt 0:00:04]} cxd4 {[%emt 0:00:09]} 4. Nxd4 {[%emt 0:00:02]} a6 {[%emt 0:00:56]} 5. Nc3 {[%emt 0:02:47]} Qc7 {[%emt 0:00:43]} 6. Bd3 {[%emt 0:00:33]} Nf6 {[%emt 0:00:30]} 7. f4 {[%emt 0:04:02]} b5 {[%emt 0:00:18]} 8. e5 {[%emt 0:03:24]} b4 {[%emt 0:00:08]} 9. Ne4 {[%emt 0:00:12]} Nxe4 {[%emt 0:00:15]} 10. Bxe4 {[%emt 0:00:01]} Bb7 {[%emt 0:00:09]} 11. Qf3 {[%emt 0:00:13]} Nc6 {[%emt 0:03:46]} 12. Nxc6 {[%emt 0:01:09]} Bxc6 {[%emt 0:00:06]} 13. Bxc6 {[%emt 0:00:03]} dxc6 {[%emt 0:00:18]} 14. Be3 {[%emt 0:03:19]} Rd8 {[%emt 0:00:19]} 15. O-O {[%emt 0:06:35]} Be7 {[%emt 0:03:05]} 16. Rac1 {[%emt 0:08:12]} O-O {[%emt 0:08:47]} 17. c3 {[%emt 0:00:18]} bxc3 {[%emt 0:06:24]} 18. Rxc3 {[%emt 0:01:10]} Rd5 {[%emt 0:00:26]} 19. Rfc1 {[%emt 0:00:30]} Qa5 {[%emt 0:01:15]} 20. a3 {[%emt 0:04:14]} c5 {[%emt 0:14:24]} 21. Qf2 {[%emt 0:15:08]} Rfd8 {[%emt 0:03:58]} 22. h4 {[%emt 0:07:43]} Bf8 {[%emt 0:06:43]} 23. R1c2 {[%emt 0:06:07]} h5 {[%emt 0:10:03]} 24. Kh2 {[%emt 0:04:06]} Qa4 {[%emt 0:05:30]} 25. Rc4 {[%emt 0:05:37]} Qb3 {[%emt 0:01:30]} 26. Bxc5 {[%emt 0:02:14]} Bxc5 {[%emt 0:00:32]} 27. Rxc5 {[%emt 0:00:01]} Rxc5 {[%emt 0:00:41]} 28. Qxc5 {[%emt 0:03:28]} Qd3 {[%emt 0:10:36]} 29. Rf2 {[%emt 0:06:41]} g6 {[%emt 0:06:08]} 30. Rf3 {[%emt 0:03:05]} Qb1 {[%emt 0:00:26]} 31. Rb3 {[%emt 0:02:40]} Rd1 {[%emt 0:02:14]} 32. Rb8+ Kh7 {[%emt 0:00:27]} 33. Rh8+ {[%emt 0:09:59]} Kxh8 1/2-1/2

[Event "Olomouc Chess Summer-IM 2022"]
[Site "Olomouc"]
[Date "2022.08.17"]
[Round "6.11"]
[White "Obsivac, Josef"]
[Black "Shubin, Daniel"]
[Result "1-0"]
[ECO "D35"]
[WhiteElo "2284"]
[BlackElo "2206"]
[Annotator "NA RC"]
[PlyCount "83"]
[EventDate "2022.08.10"]
[EventCountry "CZE"]
[SourceTitle "playchess.com"]
[Source "ChessBase"]
[SourceQuality "1"]
[TimeControl "40/5400+30:1800+30"]

1. d4 {[%emt 0:00:05]} d5 {[%emt 0:00:01]} 2. c4 {[%emt 0:00:07]} e6 {[%emt 0:00:02]} 3. Nc3 {[%emt 0:00:09]} Nf6 {[%emt 0:00:03]} 4. cxd5 {[%emt 0:00:13]} exd5 {[%emt 0:00:05]} 5. Bg5 {[%emt 0:00:08]} Nbd7 {[%emt 0:00:06]} 6. e3 {[%emt 0:00:49]} c6 {[%emt 0:00:08]} 7. Bd3 {[%emt 0:00:19]} Be7 {[%emt 0:00:03]} 8. Qc2 {[%emt 0:00:32]} O-O {[%emt 0:00:09]} 9. Nf3 {[%emt 0:01:18]} Re8 {[%emt 0:00:05]} 10. O-O {[%emt 0:03:00]} Nf8 {[%emt 0:00:04]} 11. h3 {[%emt 0:00:09]} Be6 {[%emt 0:00:16]} 12. Ne5 {[%emt 0:11:26]} N6d7 {[%emt 0:00:05]} 13. Bxe7 {[%emt 0:06:23]} Qxe7 {[%emt 0:00:58]} 14. f4 {[%emt 0:00:23]} f6 {[%emt 0:00:06]} 15. Nf3 {[%emt 0:01:06]} Rac8 {[%emt 0:12:00]} 16. Qf2 {[%emt 0:11:30]} b5 {[%emt 0:09:11]} 17. Rae1 {[%emt 0:07:15]} Qd6 {[%emt 0:08:20]} 18. g4 {[%emt 0:02:20]} a6 {[%emt 0:10:02]} 19. Nh4 {[%emt 0:21:32]} c5 {[%emt 0:09:53]} 20. Kh1 {[%emt 0:02:00]} b4 {[%emt 0:10:22]} 21. Ne2 {[%emt 0:00:39]} c4 {[%emt 0:07:54]} 22. Bc2 {[%emt 0:00:36]} Nb6 {[%emt 0:10:10]} 23. Rg1 {[%emt 0:00:47]} b3 {[%emt 0:08:05]} 24. axb3 {[%emt 0:00:29]} cxb3 {[%emt 0:00:02]} 25. Bd3 Nc4 {[%emt 0:00:49]} 26. Ng3 {[%emt 0:02:47]} Qb4 {[%emt 0:02:46]} 27. Re2 {[%emt 0:01:37]} Rc7 {[%emt 0:04:21]} 28. Nh5 {[%emt 0:06:10]} Bf7 {[%emt 0:02:20]} 29. Nf5 {[%emt 0:02:44]} Ne6 {[%emt 0:01:40]} 30. Nfxg7 {[%emt 0:03:45]} Nxg7 {[%emt 0:01:12]} 31. Nxf6+ {[%emt 0:00:03]} Kf8 {[%emt 0:00:12]} 32. Qh4 {[%emt 0:03:31]} Rxe3 {[%emt 0:03:47]} 33. Nxh7+ {[%emt 0:00:45]} Ke8 {[%emt 0:00:04]} 34. Nf6+ {[%emt 0:00:32]} Kf8 {[%emt 0:00:00]} 35. Rxe3 {[%emt 0:02:07]} Nxe3 {[%emt 0:00:19]} 36. Qh8+ {[%emt 0:00:53]} Ke7 {[%emt 0:00:01]} 37. Qxg7 {[%emt 0:00:22]} Qd6 {[%emt 0:02:16]} 38. Re1 {[%emt 0:04:05]} Rc1 {[%emt 0:00:33]} 39. Rxc1 {[%emt 0:00:31]} Qxf4 {[%emt 0:00:03]} 40. Ng8+ {[%emt 0:00:47]} Kd7 {[%emt 0:00:45]} 41. Qf6 {[%emt 0:31:03]} Qxf6 {[%emt 0:31:02]} 42. Nxf6+ {[%emt 0:00:06]} 1-0